Cogmind - Beta 17.1 @@@ ROGUE MODE // 2026.08.25 @ 17:25:21 Player: Eddbot Result: Destroyed by G-34 Mercenary with Small Laser Performance ------------- Evolutions (1) 500 Regions Visited (2) 400 Robots Destroyed (19) 95 Value Destroyed (447) 447 Prototype IDs (0) 0 Alien Tech Used (0) 0 Bonus (0) 0 TOTAL SCORE: 1442 Bonus ------- None Cogmind --------- Core Integrity 0/400 Matter 247/300 Energy 290/350 System Corruption 0% Temperature Warm (110) Movement Core (150) Ox2 Location -9/Materials Parts ------- > --- POWER (1) -------- (None) > --- PROPULSION (2) --- (None) > --- UTILITY (4) ------ Small Storage Unit High-capacity Battery > --- WEAPON (2) ------- (None) > --- INVENTORY (8) ---- Aluminum Leg Aluminum Leg Aluminum Leg Mining Laser Peak State ------------ > --- POWER ------------ Light Ion Engine > --- PROPULSION ------- Aluminum Leg Aluminum Leg > --- UTILITY ---------- Small Storage Unit High-capacity Battery Improved Terrain Scanner > --- WEAPON ----------- Medium Laser Assault Rifle > --- INVENTORY -------- Aluminum Leg Aluminum Leg Grenade Launcher Mining Laser [Rating: 10] Favorites ----------- Power Light Ion Engine Engine Light Ion Engine Propulsion Aluminum Leg Leg Aluminum Leg Utility Small Storage Unit Device Improved Terrain Scanner Storage Small Storage Unit Weapon Assault Rifle Energy Gun Medium Laser Ballistic Gun Assault Rifle Launcher Grenade Launcher Special Weapon Mining Laser Build | -11 -10 -9 ------- Run | Yrd Mat Mat Slots Evolved 2 | . . 2 Power . | . . . Propulsion . | . . . Utility 2 | . . 2 Weapon . | . . . Parts Attached 12 | 7 3 2 Power 2 | 1 1 . Engine 2 | 1 1 . Core . | . . . Reactor . | . . . Propulsion 2 | 2 . . Treads . | . . . Leg 2 | 2 . . Wheel . | . . . Hover . | . . . Flight . | . . . Utility 3 | 2 . 1 Device 1 | 1 . . Storage 2 | 1 . 1 Processor . | . . . Hackware . | . . . Protection . | . . . Artifact . | . . . Weapon 5 | 2 2 1 Energy Gun 2 | 1 1 . Energy Cannon . | . . . Ballistic Gun 1 | 1 . . Ballistic Cannon . | . . . Launcher 1 | . . 1 Special Weapon 1 | . 1 . Impact Weapon . | . . . Slashing Weapon . | . . . Piercing Weapon . | . . . Special Melee Weapon . | . . . Unidentified Prototypes . | . . . Parts Lost 8 | . 1 7 Power 2 | . 1 1 Propulsion 2 | . . 2 Utility 1 | . . 1 Weapon 3 | . . 3 Highest Loss Streak 6 | . 1 6 To Critical Strikes . | . . . Average Backups 4 | 2 4 4 Power . | . . . Propulsion 1 | . 1 2 Utility . | . . . Weapon 1 | . 2 1 Tool/Special . | . . . Unused Backups 5 | . 2 3 Power . | . . . Propulsion 5 | . 2 3 Utility . | . . . Weapon . | . . . Tool/Special . | . . . Average Slot Usage (%) 88 | . 98 74 Engine 8 | . 13 2 Leg 25 | . 28 20 Device 11 | . 14 8 Storage 17 | . 14 22 Energy Gun 12 | . 13 9 Ballistic Gun 12 | . 14 9 Peak Build Rating 10 | 9 9 10 Average Rating 8 | 5 8 8 On Entrance 6 | . 9 9 Avg Prop Armor Cover (%) . | . . . Naked Turns . | . . . Heaviest Build 17 | 13 13 17 Greatest Support 20 | 20 20 20 Greatest Overweight (x) . | . . . Average Overweight (x) . | . . . Largest Inventory Capacity 8 | 8 8 8 Average Capacity 7 | 6 8 8 Most Carried 6 | 5 6 6 Average Carried 4 | 2 4 4 Final Capacity 8 | 8 8 8 Final Carried 5 | 5 5 4 Class Distribution -------------------- 100% | Mutant Dominant Class ---------------- Mutant | -10/Materials Mutant | -9/Materials Resources | -11 -10 -9 ----------- Run | Yrd Mat Mat Matter Collected 413 | 285 43 85 Remotely . | . . . Salvage Created 558 | 114 190 254 Parts 44 | 11 10 23 Haulers Intercepted . | . . . Recyclers Shooed 1 | 1 . . Parts Field Recycled . | . . . Retrieved Matter . | . . . Parts Self-Destructed . | . . . Prevented . | . . . Parts Restored . | . . . Kills | -11 -10 -9 ------- Run | Yrd Mat Mat Combat Hostiles Destroyed 13 | . 4 9 Guns 9 | . 4 5 AOE 4 | . . 4 Classes Destroyed 7 | 2 2 3 Tunneler 2 | 2 . . Recycler 1 | 1 . . Operator 1 | . . 1 Watcher 2 | . 2 . Swarmer 5 | . . 5 Grunt 7 | . 4 3 Sentry 1 | . . 1 Best Kill Streak 7 | 3 2 7 Combat Bots Only 6 | . 1 6 Max Kills in Single Turn 3 | 1 1 3 Gunslinging 1 | . . 1 Exploded 3 | . . 3 Melee . | . . . Uniques/NPCs Destroyed . | . . . Combat | -11 -10 -9 -------- Run | Yrd Mat Mat Hostile Shots Fired 100 | . 15 85 Missed 26 | . 6 20 Hits 74 | . 9 65 Projectile 74 | . 9 65 AOE 1 | . . 1 Critical Strikes 1 | . . 1 Damage Taken 1131 | . 121 1010 Core 429 | . 25 404 Absorbed by Shields . | . . . Regen/Repaired (Parts) 19 | . . 19 Core Remaining (%) 95 | 100 90 . Volleys Fired 48 | 5 19 24 Largest 2 | 2 2 2 Hottest 100 | 60 100 70 Shots Fired 80 | 10 37 33 Gun 73 | 10 36 27 Cannon . | . . . Launcher 6 | . . 6 Special 1 | . 1 . Kinetic 32 | 5 18 9 Thermal 36 | . 18 18 Explosive 6 | . . 6 Electromagnetic 6 | 5 1 . Robot Hit Streak 10 | 5 4 10 Robot Miss Streak 6 | 1 3 6 Penetration Max . | . . . Secondary Targets 2 | . 1 1 Max Gunslinging Chain 1 | . 1 1 Shots Hit Robots 44 | 8 16 20 Core Hits 28 | 4 10 14 Critical Kills . | . . . Critical Parts Destroyed . | . . . Critical Strikes 2 | . . 2 Burn 2 | . . 2 Melee Attacks . | . . . Impact . | . . . Slashing . | . . . Piercing . | . . . Sneak Attacks . | . . . Combat Hostiles . | . . . Follow-up Attacks . | . . . Damage Inflicted 775 | 99 215 461 Guns 555 | 99 215 241 Cannons . | . . . Explosions 220 | . . 220 Melee . | . . . Ramming . | . . . Kinetic 245 | 32 149 64 Thermal 228 | . 51 177 Explosive 220 | . . 220 Electromagnetic 82 | 67 15 . Impact . | . . . Slashing . | . . . Piercing . | . . . Highest Corruption . | . . . Average Corruption . | . . . Corruption Purged . | . . . Corruption Blocked . | . . . Overload Shots . | . . . Overflow Damage 18 | . . 18 Projectiles . | . . . Explosions 18 | . . 18 Melee . | . . . Knockbacks . | . . . Impact . | . . . Kinetic . | . . . Secondary . | . . . Self-Inflicted Damage 50 | . . 50 Shots 2 | . . 2 Rammed . | . . . Targets Rammed . | . . . Kicked . | . . . Crushed . | . . . Highest Temperature 95 | . 72 95 Average Temperature 28 | . 21 39 Received Heat Transfer 372 | . 72 300 Siege Activations . | . . . Martial Activations . | . . . Shielding Activations . | . . . Robots Disrupted . | . . . Combat Hostiles . | . . . Robots Corrupted . | . . . Combat Hostiles . | . . . Parts Fried . | . . . Impact Corruptions . | . . . Robots Melted . | . . . Combat Hostiles . | . . . Parts Melted 2 | . . 2 Heat Transferred 814 | . 148 666 Parts Sabotaged . | . . . Parts Stolen . | . . . Parts Stripped . | . . . Power Chain Reactions . | . . . Alert | -11 -10 -9 ------- Run | Yrd Mat Mat Maximum Alert Level . | . . . Low Security (%) 100 | 100 100 100 Level 1 . | . . . Level 2 . | . . . Level 3 . | . . . Level 4 . | . . . Level 5 . | . . . High Security . | . . . Max Security . | . . . Peak Influence 180 | 10 77 180 Initial 10 | . . 10 Average 39 | 1 41 52 Influence Increases 440 | 15 145 280 Destroy 0b10 Robot/C 260 | . 80 180 Destroy 0b10 Robot/NC 30 | 15 10 5 Destroy Leader 54 | . 24 30 Successful Hack 3 | . . 3 Disable Machine 30 | . . 30 Destroy Structure 33 | . 1 32 Lose Combat Pursuer 30 | . 30 . Influence Decreases 290 | 15 120 155 Entered New Map 15 | . . 15 Time Decay 205 | 15 110 80 Lost Part 70 | . 10 60 Squads Dispatched 6 | . 3 3 Investigation 1 | . 1 . Extermination . | . . . Reinforcement 5 | . 2 3 Assault . | . . . Garrison . | . . . Intercept . | . . . Searches Triggered . | . . . Construction Impeded . | . . . Haulers Reinforced . | . . . Active Scanning Responses . | . . . Cargo Convoy Interrupts . | . . . Stealth | -11 -10 -9 --------- Run | Yrd Mat Mat Distress Signals 3 | . 1 2 Communications Jammed . | . . . Distress Signals . | . . . Times Spotted 33 | . 8 25 Peak Tracking Total 12 | . 5 12 Tactical Retreats 1 | . 1 . Traps | -11 -10 -9 ------- Run | Yrd Mat Mat Traps Triggered 1 | . 1 . Indirectly . | . . . Trap Hack Attempts . | . . . Triggered . | . . . Disarmed . | . . . Reprogrammed . | . . . Reused . | . . . Traps Extracted . | . . . Installed . | . . . Triggered . | . . . Machines | -11 -10 -9 ---------- Run | Yrd Mat Mat Machines Disabled 2 | . . 2 Max in Single Turn 1 | . . 1 Machines Repaired . | . . . Machines Dismantled . | . . . Machines Sabotaged . | . . . Overloaded Fab Kills . | . . . Hacking | -11 -10 -9 --------- Run | Yrd Mat Mat Machines Accessed 3 | . 1 2 Terminals 2 | . 1 1 Fabricators . | . . . Repair Stations 1 | . . 1 Recycling Units . | . . . Scanalyzers . | . . . Garrison Access . | . . . Total Hacks 12 | . 4 8 Successful 6 | . . 6 Failed 6 | . 4 2 Catastrophic . | . . . Database Lockouts . | . . . Manual . | . . . Terminals 10 | . 4 6 Fabricators . | . . . Repair Stations 2 | . . 2 Recycling Units . | . . . Scanalyzers . | . . . Garrison Access . | . . . Terminal Hacks 4 | . . 4 Record 3 | . . 3 Zone Layout 1 | . . 1 Fabricator Hacks . | . . . Repair Station Hacks 2 | . . 2 Scan Component 1 | . . 1 Repair 1 | . . 1 Recycling Unit Hacks . | . . . Scanalyzer . | . . . Garrison Access Hacks . | . . . Unauthorized Hacks . | . . . Terminals . | . . . Fabricators . | . . . Repair Stations . | . . . Recycling Units . | . . . Scanalyzers . | . . . Garrison Access . | . . . Data Cores Recovered . | . . . Used . | . . . Hacking Detections 3 | . 1 2 Full Trace Events . | . . . Feedback Events . | . . . Feedback Blocked . | . . . Robot Schematics Acquired . | . . . Robots Built . | . . . Authchips . | . . . Time . | . . . Total Robot Build Rating . | . . . Part Schematics Acquired . | . . . Parts Built . | . . . Authchips . | . . . Time . | . . . Total Part Build Rating . | . . . Part Studies Acquired . | . . . Parts Repaired 1 | . . 1 Time 38 | . . 38 Parts Recycled . | . . . Recycled Matter . | . . . Retrieved Matter . | . . . Retrieved Components . | . . . Parts Scanalyzed . | . . . Part Schematics Acquired . | . . . Parts Damaged . | . . . Bothacking | -11 -10 -9 ------------ Run | Yrd Mat Mat Used RIF Installer . | . . . Robots Hacked . | . . . Non-combat . | . . . Combat . | . . . Robot Hacks Applied . | . . . Relay Couplers Released . | . . . Fabnet Peak Effective % . | . . . Robots Rewired . | . . . Allies Hacked . | . . . Hacks Repelled . | . . . Allies | -11 -10 -9 -------- Run | Yrd Mat Mat Total Allies . | . . . Largest Group . | . . . Highest-Rated Group . | . . . Highest-Rated Ally . | . . . Total Orders . | . . . Ally Attacks . | . . . Total Damage . | . . . Kills . | . . . Allies Corrupted . | . . . Allies Melted . | . . . Intel | -11 -10 -9 ------- Run | Yrd Mat Mat Active Infowar (turns) 452 | 16 287 149 Terrain 452 | 16 287 149 Robot Analysis Total . | . . . Derelict Logs Recovered . | . . . Drone Launches . | . . . Drone Recoveries . | . . . Exploration | -11 -10 -9 ------------- Run | Yrd Mat Mat Turns Passed 575 | 90 287 198 Spaces Moved 336 | 51 183 102 Core 7 | 7 . . Treads . | . . . Legs 329 | 44 183 102 Wheels . | . . . Hover . | . . . Flight . | . . . Fastest Speed 50 | 50 120 120 Average Speed 118 | 110 120 120 Slowest Speed 120 | 120 120 120 Overloaded Moves . | . . . Propulsion Burnouts . | . . . Robots Hopped . | . . . Potential Cave-ins . | . . . Cave-ins Triggered . | . . . Exploration Rate (%) 18 | 3 39 14 Regions Visited 2 Branch Regions . Pre-discovered Areas . | . . . Known Exits Taken . | . . . Unknown Exits Taken 2 | 1 1 . Scrap Searched . | . . . Spaces Dug 1 | . 1 . Terrain Destroyed 34 | . 1 33 Melee . | . . . Projectile 1 | . 1 . AOE 33 | . . 33 Terrain Rammed . | . . . Walls Destroyed . | . . . Machines Disabled . | . . . Actions | -11 -10 -9 --------- Run | Yrd Mat Mat Total 431 | 74 213 144 Wait 12 | . . 12 Move 334 | 50 182 102 Hop . | . . . Pick Up 18 | 12 4 2 Fast Attach . | . . . Attach 13 | 7 3 3 Detach 1 | . 1 . Swap 2 | . 1 1 Drop 3 | . 3 . Fire 48 | 5 19 24 Melee . | . . . Ram . | . . . Kick . | . . . Crush . | . . . Escape Stasis . | . . . Rewire . | . . . Trap . | . . . Miscellaneous . | . . . Route ------- -11/Scrapyard -10/Materials -9/Materials History --------- Turn | Location | Event 59 | -11/Scrapyard | Discovered new exit (range 12) 91 | -11/Scrapyard | Entered Materials 303 | -10/Materials | Build established: Mutant 354 | -10/Materials | Discovered new exit (range 15) 378 | -10/Materials | Entered another Materials area 378 | -9/Materials | Evolved 2 slots: Utility x2 496 | -9/Materials | Repaired Imp. Terrain Scanner 558 | -9/Materials | Core integrity fell below 50% 573 | -9/Materials | Core integrity fell below 20% 576 | -9/Materials | Destroyed by G-34 Mercenary with Small Laser Last Messages --------------- 00564_ U-05 Engineer builds a Wall. 00565_ Nuclear Reactor explodes. 00565_ The unstable cave ceiling collapses. 00565_ R-06 Scavenger destroyed. 00567_ K-01 Serf collects debris. 00567_ U-05 Engineer builds a Wall. 00568_ Imp. Terrain Scanner destroyed. 00568_ Flight Unit melted. 00568_ S-10 Pest destroyed. 00569_ U-05 Engineer lays Concrete. 00570_ The unstable cave ceiling collapses. 00570_ S-10 Pest destroyed. 00570_ K-01 Serf collects debris. 00570_ U-05 Engineer builds a Wall. 00571_ The unstable cave ceiling collapses. 00572_ Destroyed Flight Unit. 00573_ U-05 Engineer builds a Wall. 00573_ K-01 Serf collects debris. 00574_ Critical hit (Burn: +37). 00576_ Med. Laser destroyed. Map ----- +----------------------------------------------------+ | ?????????????????????????????????????????????????? | | ??????????????????????????????????????????######## | | ??????????????????????????????????????##### | | ??????????????????????????????????????# # | | ??????????????????????????????????????# # || | | ???????????????????????????????? ?#???# # |! | | ??????????????????????????????????????# + |! "" | | ???????????????????????????????? ?????# # "" | | ???????????????????????????????? ?#???# # "" | | ????????????????????#??? ?? ???? ?????# # | | ??????????????????????????? ???# #????# ######## | | ?????????????????####?????? #?# ?????# # ] | | ??????????????? ?????" #?# ?????# #""" | | ?????????????## ????" ]?## #????# #"R | | ????????????? ???? ??# #????# #""" | | ???????????? # ####;;#### #?##?# + | | ???????????? == #;;;;;;;;; #????# # """ | | ???????????? ; ######% # """ | | ????????????? gg ; # """ | | ?????????????# Y ; % # | | ?????????????# " ; ######## | | ??????????????# " # ; #??????? | | ??????????????? [% = ; #??????? | | ??????????????????# = [%[ ; #??????? | | ??????? a ####==s= ;###########??????? | | ??????? u% g%g@ #??????#??????????? | | ??????? ### [g ;##?#???????????????? | | ??????? # ! #????#?????????????? | | ?????????? % #??????????????????? | | ??????????? "k [ #??????????????????? | | ???????????? = #??????????????????? | | ???????????? % ! #??????????????????? | | ???????????? #??????????????????? | | ?????????????# #??????????????????? | | ?????????????# !]###??????????????????? | | ?????????????? # ]]#???????????#????????? | | ?????????????? ####??????????????????? | | ???????????????? #?????????????????????? | | ?????????????????? # #####??????????????????????? | | ?????????????????????#???????#???????????????????? | | ?????????????????????????????????????????????????? | | ?????????????????????????????????????????????????? | | ?????????????????????????????????????????????????? | | ?????????????????????????????????????????????????? | | ?????????????????????????????????????????????????? | | ?????????????????????????????????????????????????? | | ?????????????????????????????????????????????????? | | ?????????????????????????????????????????????????? | | ?????????????????????????????????????????????????? | | ?????????????????????????????????????????????????? | +----------------------------------------------------+ Best States ------------- Heat Dissipation 28 Energy Generation 10 Energy Capacity 375 Matter Stores 300 Matter Capacity 300 Sight Range 16 Terrain Scan Range 16 Terrain Scan Density 10 Evasion (%) 55 Item Schematics ----------------- None Robot Schematics ------------------ None Fabricated ------------ Nothing Repaired ---------- Imp. Terrain Scanner | 13% | -9/Materials Studied --------- None Alien Tech Used ----------------- None Achievements -------------- None Challenges ------------ None Game ------ Seed SeismicCommSabre Manual? 0 Play Time 00:10:27 Cumulative 37.7 hours Start 2026.08.25 @ 17:15:10 End 2026.08.25 @ 17:25:21 Sessions 1 Manual Loads 0 Difficulty Rogue Special Mode None Game No. 84 Rogue 84 Adventurer 0 Explorer 0 Win Type - Total 0 Types 0/0/0/0/0/0/0/0/0/0 Lore% 15 Gallery% 22 Achievement% 14 Wizard Run 0 Options --------- Layout 1 ASCII 0 Keyboard 0 Movement Mouse Keybinds 0 Fullscreen 1 Font 24/Smallcaps Map View 50x35 Zoom Use 0% Tactical HUD 1 Map Filters NONE Filters NONE Steam 1 RUN: 958756b1-4e99-4568-a016-ca995de4ee7c